[Event "Titled Tuesday Blitz April 12 Late 2022"]
[White "Naroditsky, Daniel"]
[Black "Dimakiling, Oliver"]
[WhiteFideId "2026961"]
[BlackFideId "5202248"]
[WhiteElo "2608"]
[BlackElo "2426"]
[Result "1-0"]
[Round "02"]
[TimeControl "180+1"]
[Date "2022.04.12"]
[WhiteClock "0:01:53"]
[BlackClock "0:00:40"]

1. d4 {[%clk 0:03:00]}  Nf6 {[%clk 0:02:59]} 2. Nc3 {[%clk 0:03:00]}  c5 {[%clk 0:02:59]} 3. d5 {[%clk 0:03:01]}  d6 {[%clk 0:02:59]} 4. e4 {[%clk 0:03:00]}  g6 {[%clk 0:02:59]} 5. h3 {[%clk 0:02:55]}  Bg7 {[%clk 0:02:59]} 6. Bb5+ {[%clk 0:02:52]}  Nbd7 {[%clk 0:02:58]} 7. Nf3 {[%clk 0:02:51]}  a6 {[%clk 0:02:58]} 8. Bd3 {[%clk 0:02:48]}  O-O {[%clk 0:02:58]} 9. a4 {[%clk 0:02:48]}  b6 {[%clk 0:02:57]} 10. O-O {[%clk 0:02:47]}  Re8 {[%clk 0:02:57]} 11. Bf4 {[%clk 0:02:47]}  Qc7 {[%clk 0:02:57]} 12. Bh2 {[%clk 0:02:45]}  Bb7 {[%clk 0:02:54]} 13. Re1 {[%clk 0:02:43]}  c4 {[%clk 0:02:39]} 14. Bf1 {[%clk 0:02:42]}  Rad8 {[%clk 0:02:17]} 15. Qe2 {[%clk 0:02:35]}  Rc8 {[%clk 0:02:09]} 16. Rad1 {[%clk 0:02:26]}  b5 {[%clk 0:02:04]} 17. axb5 {[%clk 0:02:22]}  axb5 {[%clk 0:02:04]} 18. Nxb5 {[%clk 0:02:15]}  Qb6 {[%clk 0:02:05]} 19. Nbd4 {[%clk 0:02:14]}  Nc5 {[%clk 0:01:59]} 20. e5 {[%clk 0:02:11]}  dxe5 {[%clk 0:01:54]} 21. Nxe5 {[%clk 0:02:11]}  Bxd5 {[%clk 0:01:48]} 22. Nxc4 {[%clk 0:02:11]}  Bxc4 {[%clk 0:01:48]} 23. Qxc4 {[%clk 0:02:12]}  Qxb2 {[%clk 0:01:44]} 24. Rb1 {[%clk 0:02:07]}  Qa3 {[%clk 0:01:28]} 25. Ra1 {[%clk 0:02:07]}  Qb2 {[%clk 0:00:48]} 26. Reb1 {[%clk 0:02:05]}  Qxa1 {[%clk 0:00:41]} 27. Rxa1 {[%clk 0:02:05]}  Ne6 {[%clk 0:00:40]} 28. Nc6 {[%clk 0:01:53]} 1-0


[Site "https://www.chess.com"]

[Event "Titled Tuesday Blitz April 12 Late 2022"]
[White "Nazaretyan, Tigran"]
[Black "Indjic, Aleksandar"]
[WhiteFideId "24162345"]
[BlackFideId "911925"]
[WhiteElo "2225"]
[BlackElo "2616"]
[Result "0-1"]
[Round "02"]
[TimeControl "180+1"]
[Date "2022.04.12"]
[WhiteClock "0:00:06"]
[BlackClock "0:01:43"]

1. d4 {[%clk 0:03:00]}  Nf6 {[%clk 0:02:56]} 2. c4 {[%clk 0:03:00]}  c5 {[%clk 0:02:50]} 3. d5 {[%clk 0:03:00]}  e6 {[%clk 0:02:51]} 4. Nc3 {[%clk 0:03:00]}  exd5 {[%clk 0:02:51]} 5. cxd5 {[%clk 0:03:01]}  d6 {[%clk 0:02:52]} 6. e4 {[%clk 0:03:01]}  g6 {[%clk 0:02:52]} 7. Bd3 {[%clk 0:03:00]}  Bg7 {[%clk 0:02:52]} 8. h3 {[%clk 0:03:00]}  a6 {[%clk 0:02:50]} 9. a4 {[%clk 0:03:00]}  Nbd7 {[%clk 0:02:51]} 10. Nf3 {[%clk 0:03:00]}  Nh5 {[%clk 0:02:51]} 11. O-O {[%clk 0:02:59]}  Ne5 {[%clk 0:02:48]} 12. Be2 {[%clk 0:02:57]}  Nxf3+ {[%clk 0:02:48]} 13. Bxf3 {[%clk 0:02:57]}  Qh4 {[%clk 0:02:47]} 14. Bxh5 {[%clk 0:02:32]}  gxh5 {[%clk 0:02:48]} 15. Qf3 {[%clk 0:02:24]}  Be5 {[%clk 0:02:45]} 16. Qe3 {[%clk 0:02:00]}  Rg8 {[%clk 0:02:44]} 17. Kh1 {[%clk 0:01:58]}  Bd7 {[%clk 0:02:37]} 18. Ne2 {[%clk 0:01:53]}  O-O-O {[%clk 0:02:15]} 19. f4 {[%clk 0:01:53]}  Bd4 {[%clk 0:02:15]} 20. Nxd4 {[%clk 0:01:52]}  cxd4 {[%clk 0:02:15]} 21. Qxd4 {[%clk 0:01:31]}  Bxh3 {[%clk 0:02:14]} 22. Qc3+ {[%clk 0:01:30]}  Kb8 {[%clk 0:02:00]} 23. Qxh3 {[%clk 0:01:31]}  Qe7 {[%clk 0:02:00]} 24. Qf3 {[%clk 0:01:02]}  Rg4 {[%clk 0:01:57]} 25. Be3 {[%clk 0:00:56]}  Rdg8 {[%clk 0:01:56]} 26. Rf2 {[%clk 0:00:47]}  f5 {[%clk 0:01:52]} 27. e5 {[%clk 0:00:45]}  Rg3 {[%clk 0:01:47]} 28. Qe2 {[%clk 0:00:44]}  Qh4+ {[%clk 0:01:46]} 29. Kg1 {[%clk 0:00:44]}  Rh3 {[%clk 0:01:47]} 30. Ba7+ {[%clk 0:00:08]}  Ka8 {[%clk 0:01:45]} 31. Qxa6 {[%clk 0:00:06]}  Rh1# {[%clk 0:01:43]} 0-1


[Site "https://www.chess.com"]

[Event "Titled Tuesday Blitz April 12 Late 2022"]
[White "Noboa Silva, Kevin"]
[Black "Horcajuelo Rocamora, Martin"]
[WhiteFideId "3618471"]
[BlackFideId "24573027"]
[WhiteElo "2172"]
[BlackElo "1822"]
[Result "1-0"]
[Round "02"]
[TimeControl "180+1"]
[Date "2022.04.13"]
[WhiteClock "0:00:53"]
[BlackClock "0:00:02"]

1. e4 {[%clk 0:03:00]}  e5 {[%clk 0:02:59]} 2. Nf3 {[%clk 0:03:00]}  Nc6 {[%clk 0:02:59]} 3. d4 {[%clk 0:02:59]}  exd4 {[%clk 0:02:59]} 4. Nxd4 {[%clk 0:03:00]}  Nf6 {[%clk 0:02:57]} 5. Nxc6 {[%clk 0:03:00]}  bxc6 {[%clk 0:02:57]} 6. e5 {[%clk 0:03:00]}  Nd5 {[%clk 0:02:58]} 7. c4 {[%clk 0:03:00]}  Nb6 {[%clk 0:02:58]} 8. Bd3 {[%clk 0:02:56]}  Bc5 {[%clk 0:02:57]} 9. Qc2 {[%clk 0:02:55]}  Qe7 {[%clk 0:02:55]} 10. O-O {[%clk 0:02:54]}  Bb7 {[%clk 0:02:48]} 11. a3 {[%clk 0:02:50]}  a5 {[%clk 0:02:47]} 12. Bd2 {[%clk 0:02:50]}  Bd4 {[%clk 0:02:42]} 13. Bc3 {[%clk 0:02:49]}  Bxc3 {[%clk 0:02:42]} 14. Nxc3 {[%clk 0:02:49]}  h6 {[%clk 0:02:40]} 15. Rfe1 {[%clk 0:02:42]}  O-O {[%clk 0:02:39]} 16. Re3 {[%clk 0:02:27]}  Rfe8 {[%clk 0:02:26]} 17. Rae1 {[%clk 0:02:25]}  Qc5 {[%clk 0:02:19]} 18. Qe2 {[%clk 0:02:07]}  Ba6 {[%clk 0:02:04]} 19. Qg4 {[%clk 0:02:04]}  Bxc4 {[%clk 0:01:52]} 20. Rg3 {[%clk 0:02:03]}  g5 {[%clk 0:01:49]} 21. Bxc4 {[%clk 0:01:54]}  Qxc4 {[%clk 0:01:48]} 22. Ne4 {[%clk 0:01:53]}  Rxe5 {[%clk 0:01:44]} 23. h4 {[%clk 0:01:45]}  f5 {[%clk 0:01:36]} 24. Qh5 {[%clk 0:01:28]}  Qe6 {[%clk 0:01:08]} 25. hxg5 {[%clk 0:01:22]}  Rxe4 {[%clk 0:01:05]} 26. gxh6+ {[%clk 0:01:16]}  Kf8 {[%clk 0:01:03]} 27. Rxe4 {[%clk 0:01:14]}  Qxe4 {[%clk 0:01:03]} 28. h7 {[%clk 0:01:12]}  Ke7 {[%clk 0:01:02]} 29. Qh6 {[%clk 0:01:03]}  Qe1+ {[%clk 0:00:17]} 30. Kh2 {[%clk 0:01:01]}  Re8 {[%clk 0:00:18]} 31. Rg7+ {[%clk 0:00:56]}  Kd8 {[%clk 0:00:18]} 32. h8=Q {[%clk 0:00:57]}  Qe5+ {[%clk 0:00:17]} 33. g3 {[%clk 0:00:56]}  Qe2 {[%clk 0:00:12]} 34. Qxe8+ {[%clk 0:00:54]}  Qxe8 {[%clk 0:00:11]} 35. Qh7 {[%clk 0:00:53]}  Nd5 {[%clk 0:00:02]} 36. Rg8 {[%clk 0:00:53]} 1-0


[Site "https://www.chess.com"]

[Event "Titled Tuesday Blitz April 12 Late 2022"]
[White "Novikova, Galina"]
[Black "Xu, Yi"]
[WhiteFideId "4157095"]
[BlackFideId "8605564"]
[WhiteElo "1863"]
[BlackElo "2471"]
[Result "0-1"]
[Round "02"]
[TimeControl "180+1"]
[Date "2022.04.13"]
[WhiteClock "0:00:20"]
[BlackClock "0:01:30"]

1. e4 {[%clk 0:03:00]}  c5 {[%clk 0:02:59]} 2. Nf3 {[%clk 0:03:01]}  d6 {[%clk 0:02:59]} 3. d4 {[%clk 0:03:01]}  cxd4 {[%clk 0:02:59]} 4. Nxd4 {[%clk 0:03:02]}  Nf6 {[%clk 0:02:59]} 5. Nc3 {[%clk 0:03:03]}  a6 {[%clk 0:02:58]} 6. h3 {[%clk 0:03:03]}  e5 {[%clk 0:02:57]} 7. Nde2 {[%clk 0:03:03]}  h5 {[%clk 0:02:56]} 8. g3 {[%clk 0:03:03]}  b5 {[%clk 0:02:54]} 9. Bg2 {[%clk 0:03:03]}  Bb7 {[%clk 0:02:52]} 10. O-O {[%clk 0:03:00]}  Be7 {[%clk 0:02:49]} 11. a4 {[%clk 0:02:56]}  b4 {[%clk 0:02:49]} 12. Nd5 {[%clk 0:02:56]}  Nxd5 {[%clk 0:02:47]} 13. exd5 {[%clk 0:02:57]}  a5 {[%clk 0:02:48]} 14. f4 {[%clk 0:02:53]}  Nd7 {[%clk 0:02:46]} 15. fxe5 {[%clk 0:02:49]}  Nxe5 {[%clk 0:02:45]} 16. Nd4 {[%clk 0:02:46]}  Bf6 {[%clk 0:02:42]} 17. Kh1 {[%clk 0:02:01]}  Rc8 {[%clk 0:02:29]} 18. Bf4 {[%clk 0:01:54]}  O-O {[%clk 0:02:14]} 19. Qxh5 {[%clk 0:01:45]}  Rc5 {[%clk 0:02:13]} 20. Bxe5 {[%clk 0:00:44]}  Bxe5 {[%clk 0:01:57]} 21. Be4 {[%clk 0:00:38]}  g6 {[%clk 0:01:42]} 22. Bxg6 {[%clk 0:00:37]}  Bxd5+ {[%clk 0:01:40]} 23. Kh2 {[%clk 0:00:36]}  fxg6 {[%clk 0:01:37]} 24. Qxg6+ {[%clk 0:00:36]}  Bg7 {[%clk 0:01:37]} 25. Nf5 {[%clk 0:00:23]}  Rxc2+ {[%clk 0:01:33]} 26. Kg1 {[%clk 0:00:19]}  Rg2+ {[%clk 0:01:33]} 27. Kh1 {[%clk 0:00:20]}  Rxg3+ {[%clk 0:01:30]} 0-1


[Site "https://www.chess.com"]

[Event "Titled Tuesday Blitz April 12 Late 2022"]
[White "Ozdemir, Serhan Berat"]
[Black "Curtis, John"]
[WhiteFideId "6374611"]
[BlackFideId "3200256"]
[WhiteElo "1920"]
[BlackElo "2203"]
[Result "1-0"]
[Round "02"]
[TimeControl "180+1"]
[Date "2022.04.13"]
[WhiteClock "0:00:24"]
[BlackClock "0:00:18"]

1. e4 {[%clk 0:03:00]}  c5 {[%clk 0:02:59]} 2. Nf3 {[%clk 0:03:00]}  d6 {[%clk 0:02:59]} 3. d4 {[%clk 0:03:01]}  cxd4 {[%clk 0:02:59]} 4. Nxd4 {[%clk 0:03:02]}  Nf6 {[%clk 0:02:59]} 5. Nc3 {[%clk 0:03:02]}  e6 {[%clk 0:02:58]} 6. f3 {[%clk 0:03:02]}  a6 {[%clk 0:02:57]} 7. Be3 {[%clk 0:03:03]}  b5 {[%clk 0:02:38]} 8. Qd2 {[%clk 0:03:03]}  Bb7 {[%clk 0:02:38]} 9. O-O-O {[%clk 0:02:52]}  Nbd7 {[%clk 0:02:20]} 10. g4 {[%clk 0:02:52]}  h6 {[%clk 0:02:07]} 11. h4 {[%clk 0:02:46]}  b4 {[%clk 0:01:59]} 12. Nce2 {[%clk 0:02:42]}  d5 {[%clk 0:01:58]} 13. Nf4 {[%clk 0:02:32]}  dxe4 {[%clk 0:01:34]} 14. Bc4 {[%clk 0:02:26]}  e5 {[%clk 0:01:30]} 15. Nf5 {[%clk 0:01:54]}  exf4 {[%clk 0:01:17]} 16. Bxf4 {[%clk 0:01:55]}  Nb6 {[%clk 0:00:58]} 17. Qe2 {[%clk 0:01:31]}  Qc8 {[%clk 0:00:55]} 18. Bb3 {[%clk 0:01:27]}  Nbd5 {[%clk 0:00:38]} 19. Bd6 {[%clk 0:01:21]}  g6 {[%clk 0:00:32]} 20. Bxf8 {[%clk 0:01:17]}  Kxf8 {[%clk 0:00:32]} 21. fxe4 {[%clk 0:01:10]}  Nf4 {[%clk 0:00:32]} 22. Qd2 {[%clk 0:01:01]}  gxf5 {[%clk 0:00:31]} 23. Qxf4 {[%clk 0:01:01]}  Bxe4 {[%clk 0:00:29]} 24. Qd6+ {[%clk 0:00:33]}  Kg7 {[%clk 0:00:29]} 25. g5 {[%clk 0:00:33]}  Ng4 {[%clk 0:00:28]} 26. Rhg1 {[%clk 0:00:24]}  Rd8 {[%clk 0:00:23]} 27. gxh6+ {[%clk 0:00:18]}  Kh8 {[%clk 0:00:23]} 28. Qe7 {[%clk 0:00:14]}  Rxd1+ {[%clk 0:00:19]} 29. Rxd1 {[%clk 0:00:15]}  Qf8 {[%clk 0:00:18]} 30. Qg5 {[%clk 0:00:12]}  Qxh6 {[%clk 0:00:18]} 31. Bxf7 {[%clk 0:00:11]}  Qxg5+ {[%clk 0:00:19]} 32. hxg5 {[%clk 0:00:12]}  Kg7 {[%clk 0:00:19]} 33. Be6 {[%clk 0:00:12]}  Re8 {[%clk 0:00:19]} 34. Rd7+ {[%clk 0:00:13]}  Kg6 {[%clk 0:00:19]} 35. Bf7+ {[%clk 0:00:13]}  Kxg5 {[%clk 0:00:19]} 36. Bxe8 {[%clk 0:00:13]}  f4 {[%clk 0:00:20]} 37. Rg7+ {[%clk 0:00:13]}  Kf6 {[%clk 0:00:20]} 38. Rxg4 {[%clk 0:00:14]}  Kf5 {[%clk 0:00:20]} 39. Bd7+ {[%clk 0:00:13]}  Ke5 {[%clk 0:00:20]} 40. Kd2 {[%clk 0:00:13]}  Bf3 {[%clk 0:00:20]} 41. Rg5+ {[%clk 0:00:13]}  Kd6 {[%clk 0:00:20]} 42. Bg4 {[%clk 0:00:14]}  Be4 {[%clk 0:00:20]} 43. c3 {[%clk 0:00:14]}  b3 {[%clk 0:00:20]} 44. axb3 {[%clk 0:00:14]}  Bd5 {[%clk 0:00:19]} 45. b4 {[%clk 0:00:15]}  f3 {[%clk 0:00:20]} 46. Rxd5+ {[%clk 0:00:14]}  Kxd5 {[%clk 0:00:20]} 47. Bxf3+ {[%clk 0:00:15]}  Kd6 {[%clk 0:00:19]} 48. Kd3 {[%clk 0:00:15]}  Kc7 {[%clk 0:00:19]} 49. Kc4 {[%clk 0:00:16]}  Kb6 {[%clk 0:00:20]} 50. b5 {[%clk 0:00:17]}  axb5+ {[%clk 0:00:19]} 51. Kb4 {[%clk 0:00:18]}  Ka6 {[%clk 0:00:20]} 52. Be2 {[%clk 0:00:19]}  Kb6 {[%clk 0:00:20]} 53. Bxb5 {[%clk 0:00:20]}  Kc7 {[%clk 0:00:21]} 54. c4 {[%clk 0:00:21]}  Kd6 {[%clk 0:00:20]} 55. c5+ {[%clk 0:00:22]}  Ke5 {[%clk 0:00:21]} 56. Bc4 {[%clk 0:00:22]}  Kd4 {[%clk 0:00:22]} 57. Kb5 {[%clk 0:00:23]}  Ke3 {[%clk 0:00:23]} 58. c6 {[%clk 0:00:23]}  Kd2 {[%clk 0:00:24]} 59. c7 {[%clk 0:00:24]}  Kc1 {[%clk 0:00:24]} 60. c8=Q {[%clk 0:00:25]}  Kb1 {[%clk 0:00:25]} 61. b4 {[%clk 0:00:24]}  Kb2 {[%clk 0:00:26]} 62. Qh8+ {[%clk 0:00:23]}  Kb1 {[%clk 0:00:27]} 63. Bd3+ {[%clk 0:00:23]}  Kc1 {[%clk 0:00:21]} 64. Qc3+ {[%clk 0:00:22]}  Kd1 {[%clk 0:00:18]} 65. Qc2+ {[%clk 0:00:23]}  Ke1 {[%clk 0:00:18]} 66. Qe2# {[%clk 0:00:24]} 1-0


[Site "https://www.chess.com"]

[Event "Titled Tuesday Blitz April 12 Late 2022"]
[White "Papp, Levente"]
[Black "Kobalia, Mikhail"]
[WhiteFideId "751243"]
[BlackFideId "4119150"]
[WhiteElo "2308"]
[BlackElo "2667"]
[Result "1/2-1/2"]
[Round "02"]
[TimeControl "180+1"]
[Date "2022.04.12"]
[WhiteClock "0:00:14"]
[BlackClock "0:01:02"]

1. c4 {[%clk 0:02:59]}  Nf6 {[%clk 0:02:58]} 2. g3 {[%clk 0:02:59]}  g6 {[%clk 0:02:58]} 3. Bg2 {[%clk 0:02:59]}  Bg7 {[%clk 0:02:59]} 4. Nc3 {[%clk 0:03:00]}  O-O {[%clk 0:02:59]} 5. e4 {[%clk 0:03:00]}  d6 {[%clk 0:02:57]} 6. Nge2 {[%clk 0:03:01]}  c5 {[%clk 0:02:57]} 7. O-O {[%clk 0:03:01]}  Nc6 {[%clk 0:02:57]} 8. d3 {[%clk 0:03:02]}  Bg4 {[%clk 0:02:56]} 9. f3 {[%clk 0:03:01]}  Be6 {[%clk 0:02:55]} 10. Be3 {[%clk 0:02:59]}  Nd7 {[%clk 0:02:54]} 11. Qd2 {[%clk 0:02:51]}  Nd4 {[%clk 0:02:53]} 12. Bh6 {[%clk 0:02:51]}  Qb6 {[%clk 0:02:43]} 13. Bxg7 {[%clk 0:02:50]}  Kxg7 {[%clk 0:02:44]} 14. Rab1 {[%clk 0:02:49]}  a6 {[%clk 0:02:39]} 15. Nxd4 {[%clk 0:02:29]}  cxd4 {[%clk 0:02:40]} 16. Ne2 {[%clk 0:02:30]}  Qa7 {[%clk 0:02:37]} 17. b4 {[%clk 0:02:27]}  b5 {[%clk 0:02:36]} 18. cxb5 {[%clk 0:02:11]}  axb5 {[%clk 0:02:36]} 19. Qb2 {[%clk 0:02:12]}  Ne5 {[%clk 0:02:28]} 20. Rfd1 {[%clk 0:02:07]}  Qxa2 {[%clk 0:02:23]} 21. Nxd4 {[%clk 0:02:04]}  Bd7 {[%clk 0:02:16]} 22. f4 {[%clk 0:01:50]}  Qxb2 {[%clk 0:02:16]} 23. Rxb2 {[%clk 0:01:51]}  Ng4 {[%clk 0:02:16]} 24. e5 {[%clk 0:01:17]}  Ra6 {[%clk 0:02:15]} 25. h3 {[%clk 0:01:13]}  dxe5 {[%clk 0:02:11]} 26. Nb3 {[%clk 0:01:03]}  Ne3 {[%clk 0:02:10]} 27. Re1 {[%clk 0:01:02]}  Nxg2 {[%clk 0:02:10]} 28. Rxg2 {[%clk 0:01:01]}  exf4 {[%clk 0:02:06]} 29. Nc5 {[%clk 0:01:00]}  Rd6 {[%clk 0:02:06]} 30. Rxe7 {[%clk 0:00:46]}  Bxh3 {[%clk 0:02:03]} 31. Rh2 {[%clk 0:00:44]}  Bf5 {[%clk 0:02:03]} 32. gxf4 {[%clk 0:00:43]}  Rd4 {[%clk 0:02:03]} 33. Rd2 {[%clk 0:00:32]}  Rxb4 {[%clk 0:02:00]} 34. d4 {[%clk 0:00:33]}  Rd8 {[%clk 0:01:59]} 35. d5 {[%clk 0:00:27]}  Rxf4 {[%clk 0:01:46]} 36. Nb7 {[%clk 0:00:20]}  Rd7 {[%clk 0:01:45]} 37. Rxd7 {[%clk 0:00:20]}  Bxd7 {[%clk 0:01:45]} 38. Nc5 {[%clk 0:00:21]}  Bf5 {[%clk 0:01:40]} 39. d6 {[%clk 0:00:21]}  Rc4 {[%clk 0:01:32]} 40. d7 {[%clk 0:00:21]}  Bxd7 {[%clk 0:01:32]} 41. Nxd7 {[%clk 0:00:22]}  b4 {[%clk 0:01:31]} 42. Ne5 {[%clk 0:00:22]}  Re4 {[%clk 0:01:28]} 43. Nf3 {[%clk 0:00:20]}  b3 {[%clk 0:01:26]} 44. Rb2 {[%clk 0:00:20]}  Rb4 {[%clk 0:01:23]} 45. Nd2 {[%clk 0:00:19]}  h5 {[%clk 0:01:22]} 46. Rxb3 {[%clk 0:00:20]}  Rd4 {[%clk 0:01:22]} 47. Nf3 {[%clk 0:00:20]}  Ra4 {[%clk 0:01:20]} 48. Kf2 {[%clk 0:00:21]}  Ra5 {[%clk 0:01:17]} 49. Re3 {[%clk 0:00:19]}  f6 {[%clk 0:01:16]} 50. Re7+ {[%clk 0:00:19]}  Kh6 {[%clk 0:01:16]} 51. Rf7 {[%clk 0:00:19]}  Rf5 {[%clk 0:01:14]} 52. Kg3 {[%clk 0:00:15]}  g5 {[%clk 0:01:14]} 53. Rf8 {[%clk 0:00:14]}  Rf4 {[%clk 0:01:13]} 54. Rh8+ {[%clk 0:00:13]}  Kg6 {[%clk 0:01:11]} 55. Rg8+ {[%clk 0:00:13]}  Kh7 {[%clk 0:01:11]} 56. Nxg5+ {[%clk 0:00:13]}  Kxg8 {[%clk 0:01:01]} 57. Kxf4 {[%clk 0:00:13]}  fxg5+ {[%clk 0:01:02]} 58. Kxg5 {[%clk 0:00:14]}  h4 {[%clk 0:01:02]} 59. Kxh4 {[%clk 0:00:14]} 1/2-1/2


[Site "https://www.chess.com"]

[Event "Titled Tuesday Blitz April 12 Late 2022"]
[White "Petrovskyi, Vadym"]
[Black "Artemiev, Vladislav"]
[WhiteFideId "14165210"]
[BlackFideId "24101605"]
[WhiteElo "2400"]
[BlackElo "2811"]
[Result "1-0"]
[Round "02"]
[TimeControl "180+1"]
[Date "2022.04.12"]
[WhiteClock "0:00:22"]
[BlackClock "0:00:04"]

1. e4 {[%clk 0:03:00]}  e5 {[%clk 0:02:58]} 2. Nf3 {[%clk 0:03:01]}  Nc6 {[%clk 0:02:58]} 3. d4 {[%clk 0:03:01]}  exd4 {[%clk 0:02:58]} 4. Bc4 {[%clk 0:03:01]}  Nf6 {[%clk 0:02:54]} 5. e5 {[%clk 0:03:01]}  Ng4 {[%clk 0:02:54]} 6. O-O {[%clk 0:02:45]}  Be7 {[%clk 0:02:54]} 7. Re1 {[%clk 0:02:42]}  d6 {[%clk 0:02:54]} 8. exd6 {[%clk 0:02:36]}  cxd6 {[%clk 0:02:53]} 9. Nxd4 {[%clk 0:02:34]}  O-O {[%clk 0:02:53]} 10. Nc3 {[%clk 0:02:33]}  Bh4 {[%clk 0:02:51]} 11. g3 {[%clk 0:02:28]}  Bf6 {[%clk 0:02:51]} 12. Ndb5 {[%clk 0:02:23]}  Nxf2 {[%clk 0:02:45]} 13. Kxf2 {[%clk 0:02:19]}  a6 {[%clk 0:02:45]} 14. Qxd6 {[%clk 0:01:59]}  axb5 {[%clk 0:02:42]} 15. Nxb5 {[%clk 0:01:53]}  Be6 {[%clk 0:01:49]} 16. Qxd8 {[%clk 0:01:37]}  Raxd8 {[%clk 0:01:49]} 17. Bxe6 {[%clk 0:01:38]}  fxe6 {[%clk 0:01:49]} 18. Kg2 {[%clk 0:01:38]}  Nb4 {[%clk 0:01:47]} 19. Na3 {[%clk 0:01:35]}  Rd5 {[%clk 0:00:55]} 20. Re4 {[%clk 0:01:32]}  Nc6 {[%clk 0:00:30]} 21. c3 {[%clk 0:01:32]}  Ne5 {[%clk 0:00:26]} 22. Be3 {[%clk 0:01:29]}  Nd3 {[%clk 0:00:24]} 23. Rb1 {[%clk 0:01:07]}  Ra8 {[%clk 0:00:24]} 24. Rxe6 {[%clk 0:01:03]}  h5 {[%clk 0:00:19]} 25. Rb6 {[%clk 0:00:41]}  Bxc3 {[%clk 0:00:18]} 26. Nc4 {[%clk 0:00:38]}  Rxa2 {[%clk 0:00:14]} 27. Rxb7 {[%clk 0:00:37]}  Bd4 {[%clk 0:00:13]} 28. Kf3 {[%clk 0:00:32]}  Nc5 {[%clk 0:00:09]} 29. Rb5 {[%clk 0:00:29]}  Rf5+ {[%clk 0:00:06]} 30. Kg2 {[%clk 0:00:28]}  Bxe3 {[%clk 0:00:05]} 31. Nxe3 {[%clk 0:00:29]}  Re5 {[%clk 0:00:06]} 32. Nc4 {[%clk 0:00:29]}  Rf5 {[%clk 0:00:02]} 33. Kh3 {[%clk 0:00:27]}  g6 {[%clk 0:00:02]} 34. Nd6 {[%clk 0:00:26]}  Re5 {[%clk 0:00:01]} 35. b4 {[%clk 0:00:20]}  Nd3 {[%clk 0:00:02]} 36. Rxe5 {[%clk 0:00:21]}  Nxe5 {[%clk 0:00:03]} 37. b5 {[%clk 0:00:22]}  Nf3 {[%clk 0:00:03]} 38. Rh1 {[%clk 0:00:20]}  Ng5+ {[%clk 0:00:03]} 39. Kh4 {[%clk 0:00:20]}  Nf3+ {[%clk 0:00:04]} 40. Kh3 {[%clk 0:00:20]}  g5 {[%clk 0:00:03]} 41. g4 {[%clk 0:00:21]}  h4 {[%clk 0:00:02]} 42. b6 {[%clk 0:00:21]}  Rb2 {[%clk 0:00:03]} 43. b7 {[%clk 0:00:21]}  Rb3 {[%clk 0:00:03]} 44. Kg2 {[%clk 0:00:20]}  Ne5 {[%clk 0:00:02]} 45. Rc1 {[%clk 0:00:21]}  h3+ {[%clk 0:00:02]} 46. Kf1 {[%clk 0:00:20]}  Kg7 {[%clk 0:00:02]} 47. Rc8 {[%clk 0:00:20]}  Rb1+ {[%clk 0:00:01]} 48. Ke2 {[%clk 0:00:20]}  Rb2+ {[%clk 0:00:02]} 49. Kd1 {[%clk 0:00:19]}  Nxg4 {[%clk 0:00:02]} 50. b8=Q {[%clk 0:00:20]}  Rxb8 {[%clk 0:00:02]} 51. Rxb8 {[%clk 0:00:21]}  Nxh2 {[%clk 0:00:03]} 52. Ne4 {[%clk 0:00:21]}  g4 {[%clk 0:00:02]} 53. Ke2 {[%clk 0:00:21]}  Kg6 {[%clk 0:00:03]} 54. Kf2 {[%clk 0:00:21]}  Kf5 {[%clk 0:00:04]} 55. Ng3+ {[%clk 0:00:22]}  Kg5 {[%clk 0:00:04]} 56. Rb5+ {[%clk 0:00:22]} 1-0


[Site "https://www.chess.com"]

[Event "Titled Tuesday Blitz April 12 Late 2022"]
[White "Putri, Regita Desyari"]
[Black "Lewicki, Miroslaw"]
[WhiteFideId "7109083"]
[BlackFideId "1113380"]
[WhiteElo "1930"]
[BlackElo "2283"]
[Result "0-1"]
[Round "02"]
[TimeControl "180+1"]
[Date "2022.04.13"]
[WhiteClock "0:00:04"]
[BlackClock "0:01:32"]

1. c4 {[%clk 0:02:59]}  c5 {[%clk 0:02:45]} 2. Nc3 {[%clk 0:02:59]}  d6 {[%clk 0:02:45]} 3. Nf3 {[%clk 0:02:54]}  Nf6 {[%clk 0:02:45]} 4. d4 {[%clk 0:02:51]}  cxd4 {[%clk 0:02:46]} 5. Nxd4 {[%clk 0:02:43]}  g6 {[%clk 0:02:46]} 6. e4 {[%clk 0:02:43]}  Bg7 {[%clk 0:02:46]} 7. Be2 {[%clk 0:02:42]}  O-O {[%clk 0:02:47]} 8. O-O {[%clk 0:02:43]}  Nc6 {[%clk 0:02:47]} 9. Be3 {[%clk 0:02:43]}  Bd7 {[%clk 0:02:47]} 10. f3 {[%clk 0:02:40]}  Rc8 {[%clk 0:02:46]} 11. Rc1 {[%clk 0:02:31]}  Qa5 {[%clk 0:02:39]} 12. Qd2 {[%clk 0:02:25]}  Nxd4 {[%clk 0:02:38]} 13. Bxd4 {[%clk 0:02:24]}  Be6 {[%clk 0:02:39]} 14. b3 {[%clk 0:02:21]}  Nd7 {[%clk 0:02:32]} 15. Be3 {[%clk 0:02:12]}  a6 {[%clk 0:02:23]} 16. Rfd1 {[%clk 0:01:35]}  Qh5 {[%clk 0:02:11]} 17. Nd5 {[%clk 0:01:29]}  Bxd5 {[%clk 0:02:07]} 18. Qxd5 {[%clk 0:01:25]}  Qxd5 {[%clk 0:02:06]} 19. Rxd5 {[%clk 0:01:23]}  Rc6 {[%clk 0:02:04]} 20. Rcd1 {[%clk 0:01:22]}  Rfc8 {[%clk 0:02:04]} 21. f4 {[%clk 0:01:15]}  Nf6 {[%clk 0:02:03]} 22. R5d4 {[%clk 0:01:10]}  e5 {[%clk 0:01:49]} 23. Rxd6 {[%clk 0:00:49]}  Rxd6 {[%clk 0:01:50]} 24. Rxd6 {[%clk 0:00:50]}  Nxe4 {[%clk 0:01:50]} 25. Rd7 {[%clk 0:00:50]}  Nc3 {[%clk 0:01:50]} 26. Bf3 {[%clk 0:00:46]}  e4 {[%clk 0:01:50]} 27. Bd1 {[%clk 0:00:38]}  b5 {[%clk 0:01:46]} 28. c5 {[%clk 0:00:35]}  Nxa2 {[%clk 0:01:44]} 29. Bc2 {[%clk 0:00:27]}  f5 {[%clk 0:01:43]} 30. Kf2 {[%clk 0:00:15]}  Nb4 {[%clk 0:01:40]} 31. Bb1 {[%clk 0:00:12]}  Bf8 {[%clk 0:01:40]} 32. Ra7 {[%clk 0:00:04]}  Bxc5 {[%clk 0:01:37]} 33. Bxc5 {[%clk 0:00:05]}  Rxc5 {[%clk 0:01:37]} 34. Ke3 {[%clk 0:00:02]}  Rc1 {[%clk 0:01:35]} 35. Bxe4 {[%clk 0:00:03]}  Re1+ {[%clk 0:01:34]} 36. Kd2 {[%clk 0:00:03]}  Rxe4 {[%clk 0:01:33]} 37. Kc3 {[%clk 0:00:04]}  Nd5+ {[%clk 0:01:32]} 38. Kd3 {[%clk 0:00:04]}  Nxf4+ {[%clk 0:01:32]} 0-1


[Site "https://www.chess.com"]